[Event "Early-Titled-Tuesday-Blitz-May-07-2024"]
[Site "Chess.com"]
[Date "2024.05.07"]
[Round "4"]
[White "sonicdravise"]
[Black "Eloist"]
[Result "1-0"]
[WhiteElo "2635"]
[BlackElo "2416"]
[TimeControl "180+1"]
[EndTime "8:43:24 PDT"]
[Termination "sonicdravise won by resignation"]

1. Nf3 {[%clk 0:03:00.9]} 1... Nf6 {[%clk 0:02:59.4]} 2. c4 {[%clk 0:02:55.6]}
2... e6 {[%clk 0:02:59]} 3. b3 {[%clk 0:02:50.2]} 3... b6 {[%clk 0:02:58.8]} 4.
g3 {[%clk 0:02:49.5]} 4... Bb7 {[%clk 0:02:59]} 5. Bg2 {[%clk 0:02:50.2]} 5...
g6 {[%clk 0:02:58.2]} 6. Bb2 {[%clk 0:02:48.8]} 6... Bg7 {[%clk 0:02:58.3]} 7.
O-O {[%clk 0:02:48.8]} 7... O-O {[%clk 0:02:58.2]} 8. d4 {[%clk 0:02:37]} 8...
c5 {[%clk 0:02:55]} 9. Nc3 {[%clk 0:02:28.7]} 9... cxd4 {[%clk 0:02:49.1]} 10.
Qxd4 {[%clk 0:02:25.5]} 10... d5 {[%clk 0:02:34]} 11. Rad1 {[%clk 0:01:59.9]}
11... Nc6 {[%clk 0:02:16.6]} 12. Qh4 {[%clk 0:01:53.1]} 12... Ne4 {[%clk
0:01:54.5]} 13. Nxe4 {[%clk 0:01:32.8]} 13... Qxh4 {[%clk 0:01:47.7]} 14. Nxh4
{[%clk 0:01:30.2]} 14... Bxb2 {[%clk 0:01:46.3]} 15. Nd6 {[%clk 0:01:29]} 15...
Ba6 {[%clk 0:01:37.1]} 16. cxd5 {[%clk 0:01:28.9]} 16... Nd4 {[%clk 0:01:28]}
17. dxe6 {[%clk 0:01:13]} 17... Nxe2+ {[%clk 0:01:05.7]} 18. Kh1 {[%clk
0:01:12.8]} 18... fxe6 {[%clk 0:01:04.8]} 19. Bxa8 {[%clk 0:00:48.8]} 19... Rxa8
{[%clk 0:01:05.7]} 20. Nc4 {[%clk 0:00:49]} 20... Bf6 {[%clk 0:00:46.1]} 21. Ng2
{[%clk 0:00:36.8]} 21... Bb7 {[%clk 0:00:30.4]} 22. f3 {[%clk 0:00:34.5]} 22...
Nd4 {[%clk 0:00:24.5]} 23. Ne1 {[%clk 0:00:24.6]} 23... b5 {[%clk 0:00:16.2]}
24. Ne3 {[%clk 0:00:17.1]} 24... Rc8 {[%clk 0:00:14]} 25. Kg1 {[%clk 0:00:14.2]}
25... Kf7 {[%clk 0:00:13.1]} 26. Ng4 {[%clk 0:00:12.3]} 26... Bg7 {[%clk
0:00:12.9]} 27. Rd2 {[%clk 0:00:09.6]} 27... Rc1 {[%clk 0:00:11.9]} 28. Kf2
{[%clk 0:00:07]} 28... h5 {[%clk 0:00:09.5]} 29. Ne3 {[%clk 0:00:06.1]} 29... e5
{[%clk 0:00:08]} 30. N3g2 {[%clk 0:00:03.2]} 30... Bh6 {[%clk 0:00:07.5]} 31.
Rb2 {[%clk 0:00:02.1]} 31... a5 {[%clk 0:00:06.3]} 32. Nd3 {[%clk 0:00:01.6]}
32... Rxf1+ {[%clk 0:00:05.2]} 33. Kxf1 {[%clk 0:00:01.9]} 33... Ke6 {[%clk
0:00:05.2]} 34. Nc5+ {[%clk 0:00:02.4]} 34... Kd5 {[%clk 0:00:05.1]} 35. Nxb7
{[%clk 0:00:03.3]} 35... Nxf3 {[%clk 0:00:05]} 36. Nxa5 {[%clk 0:00:03.9]} 36...
Nxh2+ {[%clk 0:00:04.9]} 37. Kg1 {[%clk 0:00:03.9]} 37... Nf3+ {[%clk
0:00:04.8]} 38. Kf2 {[%clk 0:00:04.7]} 38... Nd4 {[%clk 0:00:04.2]} 39. Nb7
{[%clk 0:00:05.3]} 39... Bc1 {[%clk 0:00:04]} 40. Re2 {[%clk 0:00:04.5]} 40...
Nxe2 {[%clk 0:00:03.5]} 41. Kxe2 {[%clk 0:00:05.4]} 41... g5 {[%clk 0:00:03.6]}
42. Nd8 {[%clk 0:00:05.5]} 42... b4 {[%clk 0:00:03.1]} 43. Nf7 {[%clk
0:00:05.4]} 43... g4 {[%clk 0:00:03.4]} 44. Ne3+ {[%clk 0:00:05.4]} 44... Kd4
{[%clk 0:00:03.2]} 45. Nf5+ {[%clk 0:00:05.1]} 45... Kc3 {[%clk 0:00:02.8]} 46.
Nxe5 {[%clk 0:00:05.8]} 46... Kb2 {[%clk 0:00:02.8]} 47. Nd3+ {[%clk 0:00:06.2]}
47... Kc2 {[%clk 0:00:02.3]} 48. Nxc1 {[%clk 0:00:06.8]} 48... Kxc1 {[%clk
0:00:02.6]} 49. Kd3 {[%clk 0:00:07.2]} 49... Kb2 {[%clk 0:00:03]} 50. Kc4 {[%clk
0:00:07.6]} 50... Ka3 {[%clk 0:00:02.4]} 51. Nh4 {[%clk 0:00:07.4]} 51... Kxa2
{[%clk 0:00:01.9]} 52. Kxb4 {[%clk 0:00:08.3]} 52... Kb2 {[%clk 0:00:01.9]} 53.
Kc4 {[%clk 0:00:09]} 1-0

[Event "Early-Titled-Tuesday-Blitz-May-07-2024"]
[Site "Chess.com"]
[Date "2024.05.07"]
[Round "4"]
[White "littlepinkyboy"]
[Black "Kyrko_Gamba"]
[Result "0-1"]
[WhiteElo "2646"]
[BlackElo "2492"]
[TimeControl "180+1"]
[EndTime "8:43:25 PDT"]
[Termination "Kyrko_Gamba won by checkmate"]

1. e4 {[%clk 0:03:00.9]} 1... c6 {[%clk 0:02:59.3]} 2. d4 {[%clk 0:03:00.2]}
2... d5 {[%clk 0:02:58.1]} 3. Nc3 {[%clk 0:02:59.9]} 3... dxe4 {[%clk
0:02:57.7]} 4. Nxe4 {[%clk 0:03:00.8]} 4... Nf6 {[%clk 0:02:58.1]} 5. Nxf6+
{[%clk 0:03:01.2]} 5... exf6 {[%clk 0:02:59]} 6. c3 {[%clk 0:03:02]} 6... Bd6
{[%clk 0:02:59.1]} 7. Bd3 {[%clk 0:03:02.8]} 7... O-O {[%clk 0:02:58.8]} 8. Qc2
{[%clk 0:03:03.6]} 8... Re8+ {[%clk 0:02:58.8]} 9. Ne2 {[%clk 0:03:04.3]} 9...
h5 {[%clk 0:02:59.4]} 10. O-O {[%clk 0:03:04.7]} 10... h4 {[%clk 0:02:52.5]} 11.
h3 {[%clk 0:03:04.3]} 11... Nd7 {[%clk 0:02:51.4]} 12. Be3 {[%clk 0:03:00.8]}
12... Nf8 {[%clk 0:02:49.6]} 13. c4 {[%clk 0:03:00.9]} 13... Be6 {[%clk
0:02:47.7]} 14. Rad1 {[%clk 0:02:57.3]} 14... Qc8 {[%clk 0:02:39.1]} 15. Bf4
{[%clk 0:02:09.8]} 15... Qc7 {[%clk 0:02:26.6]} 16. Bxd6 {[%clk 0:02:06.8]}
16... Qxd6 {[%clk 0:02:27.5]} 17. Rfe1 {[%clk 0:02:04.8]} 17... Rad8 {[%clk
0:02:25.8]} 18. Be4 {[%clk 0:02:00.2]} 18... Bxc4 {[%clk 0:02:18.3]} 19. Nc3
{[%clk 0:01:59]} 19... g6 {[%clk 0:02:02.7]} 20. d5 {[%clk 0:01:46]} 20... cxd5
{[%clk 0:01:58]} 21. b3 {[%clk 0:00:48.6]} 21... Qc6 {[%clk 0:01:22.9]} 22. bxc4
{[%clk 0:00:28.5]} 22... dxe4 {[%clk 0:01:21.7]} 23. Rxd8 {[%clk 0:00:29.4]}
23... Rxd8 {[%clk 0:01:21.1]} 24. Rxe4 {[%clk 0:00:21.6]} 24... f5 {[%clk
0:00:27.1]} 25. Rxh4 {[%clk 0:00:13.9]} 25... Qf6 {[%clk 0:00:27]} 26. Rf4
{[%clk 0:00:11.4]} 26... Ne6 {[%clk 0:00:27.3]} 27. Rf3 {[%clk 0:00:01.8]} 27...
Nd4 {[%clk 0:00:27.4]} 28. Qd3 {[%clk 0:00:01.7]} 28... Nxf3+ {[%clk 0:00:27.2]}
29. Qxf3 {[%clk 0:00:02.6]} 29... Qd4 {[%clk 0:00:22.2]} 30. Nd5 {[%clk
0:00:02.3]} 30... Qxc4 {[%clk 0:00:20.8]} 31. Ne7+ {[%clk 0:00:01.6]} 31... Kf8
{[%clk 0:00:19.7]} 32. Qxb7 {[%clk 0:00:01.3]} 32... Qc1+ {[%clk 0:00:15.6]} 33.
Kh2 {[%clk 0:00:02]} 33... Qd2 {[%clk 0:00:15.8]} 34. Nxg6+ {[%clk 0:00:00.8]}
34... fxg6 {[%clk 0:00:15.4]} 35. Qf3 {[%clk 0:00:01.3]} 35... Qd6+ {[%clk
0:00:15.3]} 36. g3 {[%clk 0:00:01.9]} 36... Kg7 {[%clk 0:00:15.5]} 37. Qc3+
{[%clk 0:00:02.4]} 37... Qf6 {[%clk 0:00:15.3]} 38. Qc7+ {[%clk 0:00:02.9]}
38... Kh6 {[%clk 0:00:15]} 39. Qf4+ {[%clk 0:00:02.5]} 39... g5 {[%clk 0:00:15]}
40. Qc7 {[%clk 0:00:03.2]} 40... Rd2 {[%clk 0:00:13.8]} 41. Qxa7 {[%clk
0:00:03.3]} 41... f4 {[%clk 0:00:08.9]} 42. Kg2 {[%clk 0:00:01.8]} 42... f3+
{[%clk 0:00:07.6]} 43. Kh2 {[%clk 0:00:01.8]} 43... Qd6 {[%clk 0:00:06.6]} 44.
Qe3 {[%clk 0:00:01.3]} 44... Qd5 {[%clk 0:00:05.1]} 45. h4 {[%clk 0:00:00.7]}
45... Re2 {[%clk 0:00:05.5]} 46. hxg5+ {[%clk 0:00:01.2]} 46... Kg6 {[%clk
0:00:04.1]} 47. Qf4 {[%clk 0:00:01.4]} 47... Rxf2+ {[%clk 0:00:03.7]} 48. Kh3
{[%clk 0:00:02.1]} 48... Qe6+ {[%clk 0:00:04]} 49. g4 {[%clk 0:00:02.3]} 49...
Qe7 {[%clk 0:00:02.2]} 50. Kg3 {[%clk 0:00:01.9]} 50... Rg2+ {[%clk 0:00:01.3]}
51. Kh3 {[%clk 0:00:02.4]} 51... Rg1 {[%clk 0:00:02.2]} 52. Qxf3 {[%clk
0:00:02.6]} 52... Qh7# {[%clk 0:00:02.4]} 0-1

[Event "Early-Titled-Tuesday-Blitz-May-07-2024"]
[Site "Chess.com"]
[Date "2024.05.07"]
[Round "4"]
[White "profedechess93"]
[Black "PIwan"]
[Result "0-1"]
[WhiteElo "2630"]
[BlackElo "2434"]
[TimeControl "180+1"]
[EndTime "8:43:26 PDT"]
[Termination "PIwan won by resignation"]

1. e4 {[%clk 0:03:00.9]} 1... e6 {[%clk 0:03:00.9]} 2. d4 {[%clk 0:03:00.8]}
2... d5 {[%clk 0:03:01.6]} 3. Nc3 {[%clk 0:03:01.3]} 3... Nf6 {[%clk 0:03:01.5]}
4. Bg5 {[%clk 0:03:00.9]} 4... Be7 {[%clk 0:03:01.5]} 5. e5 {[%clk 0:03:01.5]}
5... Nfd7 {[%clk 0:03:01.9]} 6. h4 {[%clk 0:03:01.7]} 6... Bxg5 {[%clk
0:03:02.1]} 7. hxg5 {[%clk 0:03:01.6]} 7... Qxg5 {[%clk 0:03:03]} 8. Qd3 {[%clk
0:03:00.7]} 8... h6 {[%clk 0:03:02.8]} 9. Nh3 {[%clk 0:03:00.3]} 9... Qe7 {[%clk
0:03:02.4]} 10. Nf4 {[%clk 0:02:54.9]} 10... Nc6 {[%clk 0:03:02.3]} 11. O-O-O
{[%clk 0:02:53.5]} 11... Nb6 {[%clk 0:03:01.2]} 12. Nh5 {[%clk 0:02:50.8]} 12...
Rg8 {[%clk 0:02:59.8]} 13. Qh7 {[%clk 0:02:47.4]} 13... Qf8 {[%clk 0:02:59.8]}
14. Rh3 {[%clk 0:02:29.8]} 14... Bd7 {[%clk 0:02:55.3]} 15. Rg3 {[%clk
0:02:25.1]} 15... O-O-O {[%clk 0:02:53.2]} 16. Rxg7 {[%clk 0:02:21.6]} 16... Rh8
{[%clk 0:02:47.6]} 17. Qd3 {[%clk 0:02:16.7]} 17... Nc4 {[%clk 0:02:47]} 18. Qf3
{[%clk 0:02:07.8]} 18... N6a5 {[%clk 0:02:32.1]} 19. a3 {[%clk 0:01:48.6]} 19...
Be8 {[%clk 0:02:10.5]} 20. Qf6 {[%clk 0:01:38.9]} 20... c5 {[%clk 0:01:58.1]}
21. Bxc4 {[%clk 0:01:02.5]} 21... Nxc4 {[%clk 0:01:57.1]} 22. dxc5 {[%clk
0:01:02.3]} 22... Qxc5 {[%clk 0:01:54.3]} 23. Rg4 {[%clk 0:00:51]} 23... Rf8
{[%clk 0:01:45.2]} 24. Rdd4 {[%clk 0:00:43.7]} 24... Qb6 {[%clk 0:01:22]} 25.
Nd1 {[%clk 0:00:42.5]} 25... Qc7 {[%clk 0:01:07.8]} 26. f4 {[%clk 0:00:26.1]}
26... Ba4 {[%clk 0:00:50.5]} 27. Nc3 {[%clk 0:00:20.9]} 27... Bxc2 {[%clk
0:00:37.4]} 28. Rg3 {[%clk 0:00:16.8]} 28... Bg6 {[%clk 0:00:33.7]} 29. Ng7
{[%clk 0:00:14.4]} 29... Bh7 {[%clk 0:00:22.8]} 30. Rf3 {[%clk 0:00:08]} 30...
Be4 {[%clk 0:00:17.5]} 31. Re3 {[%clk 0:00:06.2]} 31... Nxe3 {[%clk 0:00:15.5]}
32. Nxe6 {[%clk 0:00:04.5]} 32... fxe6 {[%clk 0:00:14.9]} 33. Qxe6+ {[%clk
0:00:05.4]} 33... Kb8 {[%clk 0:00:15]} 34. Kd2 {[%clk 0:00:04.9]} 34... Nf5
{[%clk 0:00:15.1]} 35. Rb4 {[%clk 0:00:04.5]} 35... Bxg2 {[%clk 0:00:13.3]} 36.
Nb5 {[%clk 0:00:03.9]} 36... Qd7 {[%clk 0:00:09]} 37. Qg6 {[%clk 0:00:04]} 37...
Be4 {[%clk 0:00:07.3]} 38. e6 {[%clk 0:00:01.7]} 38... Qe7 {[%clk 0:00:04.9]}
39. Qg1 {[%clk 0:00:02.2]} 39... a6 {[%clk 0:00:04]} 40. Qa7+ {[%clk 0:00:01.9]}
40... Kc8 {[%clk 0:00:02.8]} 41. Nc3 {[%clk 0:00:02.3]} 41... Qc7 {[%clk
0:00:02.1]} 42. Na4 {[%clk 0:00:01.7]} 42... Rd6 {[%clk 0:00:01.5]} 43. Ke1
{[%clk 0:00:02.6]} 43... Rc6 {[%clk 0:00:01.5]} 44. Qa8+ {[%clk 0:00:03.5]}
44... Qb8 {[%clk 0:00:01.2]} 45. Nb6+ {[%clk 0:00:04.4]} 45... Rxb6 {[%clk
0:00:01.4]} 46. Qxb8+ {[%clk 0:00:05.3]} 46... Kxb8 {[%clk 0:00:02.3]} 47. Rc4
{[%clk 0:00:06]} 47... Re8 {[%clk 0:00:03.2]} 48. Rc8+ {[%clk 0:00:06.9]} 48...
Kxc8 {[%clk 0:00:03.3]} 49. e7 {[%clk 0:00:07.8]} 49... Re6 {[%clk 0:00:03.6]}
50. Kd2 {[%clk 0:00:08.2]} 50... R6xe7 {[%clk 0:00:04.5]} 51. Kc3 {[%clk
0:00:09.1]} 51... Rc7+ {[%clk 0:00:05.3]} 52. Kb4 {[%clk 0:00:10]} 52... Rc2
{[%clk 0:00:06]} 53. Ka5 {[%clk 0:00:10.9]} 53... Rxb2 {[%clk 0:00:05.9]} 54. a4
{[%clk 0:00:11.1]} 54... Rb5+ {[%clk 0:00:05.7]} 55. axb5 {[%clk 0:00:11.4]}
55... axb5 {[%clk 0:00:06.6]} 56. Kb4 {[%clk 0:00:12.3]} 56... d4 {[%clk
0:00:06.9]} 57. Ka5 {[%clk 0:00:12.4]} 57... d3 {[%clk 0:00:07.8]} 58. Kb6
{[%clk 0:00:13.3]} 58... d2 {[%clk 0:00:08.5]} 0-1

[Event "Early-Titled-Tuesday-Blitz-May-07-2024"]
[Site "Chess.com"]
[Date "2024.05.07"]
[Round "4"]
[White "SilverSwords13"]
[Black "RodTwinkz"]
[Result "0-1"]
[WhiteElo "2479"]
[BlackElo "2684"]
[TimeControl "180+1"]
[EndTime "8:43:27 PDT"]
[Termination "RodTwinkz won by resignation"]

1. e4 {[%clk 0:02:54.8]} 1... c5 {[%clk 0:03:00.9]} 2. Nf3 {[%clk 0:02:53.9]}
2... g6 {[%clk 0:03:01.1]} 3. d4 {[%clk 0:02:54.1]} 3... cxd4 {[%clk 0:03:01.1]}
4. Nxd4 {[%clk 0:02:55]} 4... Bg7 {[%clk 0:03:01.2]} 5. Nc3 {[%clk 0:02:55.6]}
5... Nc6 {[%clk 0:03:01.2]} 6. Be3 {[%clk 0:02:56.4]} 6... Nf6 {[%clk
0:03:01.5]} 7. Bc4 {[%clk 0:02:56.2]} 7... O-O {[%clk 0:03:01]} 8. Bb3 {[%clk
0:02:54.4]} 8... Qa5 {[%clk 0:03:00.6]} 9. O-O {[%clk 0:02:52.2]} 9... d6 {[%clk
0:03:00.5]} 10. h3 {[%clk 0:02:51.6]} 10... Nxd4 {[%clk 0:02:59.9]} 11. Bxd4
{[%clk 0:02:51.7]} 11... Be6 {[%clk 0:03:00.2]} 12. Re1 {[%clk 0:02:50.2]} 12...
Nd7 {[%clk 0:02:59.5]} 13. Bxg7 {[%clk 0:02:49.9]} 13... Kxg7 {[%clk 0:03:00.4]}
14. Nd5 {[%clk 0:02:41.6]} 14... Bxd5 {[%clk 0:02:36.5]} 15. exd5 {[%clk
0:02:40.7]} 15... Rfe8 {[%clk 0:02:35]} 16. Qd4+ {[%clk 0:02:39.7]} 16... Kg8
{[%clk 0:02:32.4]} 17. Re2 {[%clk 0:02:39.4]} 17... Qc5 {[%clk 0:02:20.3]} 18.
Qxc5 {[%clk 0:02:37.3]} 18... Nxc5 {[%clk 0:02:19.7]} 19. Rae1 {[%clk
0:02:37.6]} 19... Kf8 {[%clk 0:02:19.1]} 20. Bc4 {[%clk 0:02:37.9]} 20... a6
{[%clk 0:02:15.5]} 21. Re3 {[%clk 0:02:20.2]} 21... Rac8 {[%clk 0:02:12.2]} 22.
f4 {[%clk 0:02:18.9]} 22... b5 {[%clk 0:02:04.4]} 23. Be2 {[%clk 0:02:16]} 23...
Na4 {[%clk 0:01:56.4]} 24. b3 {[%clk 0:02:16.1]} 24... Nc3 {[%clk 0:01:51.1]}
25. a4 {[%clk 0:01:25.9]} 25... Nxd5 {[%clk 0:01:44.5]} 26. Rf3 {[%clk
0:01:23.6]} 26... Rxc2 {[%clk 0:01:17.5]} 27. axb5 {[%clk 0:01:22.5]} 27... axb5
{[%clk 0:01:17.2]} 28. Bxb5 {[%clk 0:01:22.1]} 28... Rb8 {[%clk 0:01:16.4]} 29.
Bc4 {[%clk 0:01:18]} 29... Nf6 {[%clk 0:01:02.4]} 30. Rfe3 {[%clk 0:01:10.5]}
30... d5 {[%clk 0:00:49.4]} 31. Bf1 {[%clk 0:00:57.3]} 31... e6 {[%clk
0:00:47.2]} 32. Ra1 {[%clk 0:00:51.2]} 32... Rb2 {[%clk 0:00:45.6]} 33. Ra3
{[%clk 0:00:44.7]} 33... Ne4 {[%clk 0:00:42.7]} 34. Ra7 {[%clk 0:00:05.1]} 34...
R2xb3 {[%clk 0:00:36.7]} 35. Rxb3 {[%clk 0:00:05.2]} 35... Rxb3 {[%clk
0:00:36.5]} 36. Be2 {[%clk 0:00:04.7]} 36... h5 {[%clk 0:00:34.4]} 37. h4 {[%clk
0:00:04.2]} 37... Ng3 {[%clk 0:00:32.6]} 38. Bf3 {[%clk 0:00:04]} 38... Nf5
{[%clk 0:00:32.1]} 39. Kh2 {[%clk 0:00:00.9]} 39... Nxh4 {[%clk 0:00:31.7]} 40.
Bd1 {[%clk 0:00:01.7]} 40... Rb2 {[%clk 0:00:31.4]} 41. Kg3 {[%clk 0:00:02.3]}
41... Nxg2 {[%clk 0:00:30.7]} 42. Bf3 {[%clk 0:00:02.3]} 42... Ne1 {[%clk
0:00:30.2]} 43. Bd1 {[%clk 0:00:01.6]} 43... Rd2 {[%clk 0:00:26.9]} 44. Ba4
{[%clk 0:00:01.3]} 44... Nd3 {[%clk 0:00:25.9]} 45. Ra8+ {[%clk 0:00:01.1]}
45... Kg7 {[%clk 0:00:25.8]} 46. Be8 {[%clk 0:00:02]} 46... Rf2 {[%clk
0:00:23.1]} 47. Ra3 {[%clk 0:00:01.1]} 47... h4+ {[%clk 0:00:22.9]} 48. Kg4
{[%clk 0:00:01.1]} 48... Ne1 {[%clk 0:00:20.5]} 49. Kxh4 {[%clk 0:00:01.3]}
49... Rxf4+ {[%clk 0:00:19.6]} 50. Kg3 {[%clk 0:00:02]} 50... Rf6 {[%clk
0:00:19]} 51. Ra7 {[%clk 0:00:02.6]} 51... Nd3 {[%clk 0:00:18.7]} 52. Rd7 {[%clk
0:00:03.2]} 52... Nf4 {[%clk 0:00:18.8]} 53. Kg4 {[%clk 0:00:03.5]} 53... Nh5
{[%clk 0:00:18.2]} 54. Kg5 {[%clk 0:00:03.7]} 54... Ng3 {[%clk 0:00:17.6]} 55.
Kg4 {[%clk 0:00:04.1]} 55... Ne4 {[%clk 0:00:17.9]} 56. Ra7 {[%clk 0:00:04.3]}
56... d4 {[%clk 0:00:17.2]} 57. Rd7 {[%clk 0:00:04.1]} 57... d3 {[%clk
0:00:17.2]} 58. Kh3 {[%clk 0:00:03.1]} 58... d2 {[%clk 0:00:16.7]} 59. Rd4
{[%clk 0:00:03.4]} 59... d1=Q {[%clk 0:00:16.1]} 0-1

[Event "Early-Titled-Tuesday-Blitz-May-07-2024"]
[Site "Chess.com"]
[Date "2024.05.07"]
[Round "4"]
[White "Smiechu"]
[Black "VacheH009"]
[Result "0-1"]
[WhiteElo "2386"]
[BlackElo "2582"]
[TimeControl "180+1"]
[EndTime "8:43:27 PDT"]
[Termination "VacheH009 won by resignation"]

1. e4 {[%clk 0:03:00.9]} 1... c6 {[%clk 0:02:56]} 2. d4 {[%clk 0:03:00.3]} 2...
d5 {[%clk 0:02:56.6]} 3. f3 {[%clk 0:03:00.8]} 3... g6 {[%clk 0:02:55]} 4. Nc3
{[%clk 0:02:55.4]} 4... Bg7 {[%clk 0:02:52.8]} 5. e5 {[%clk 0:02:55.3]} 5... f6
{[%clk 0:02:34.3]} 6. f4 {[%clk 0:02:53.8]} 6... Nh6 {[%clk 0:02:34.3]} 7. Nf3
{[%clk 0:02:53.5]} 7... O-O {[%clk 0:02:29.1]} 8. Bd3 {[%clk 0:02:50.5]} 8...
Bf5 {[%clk 0:02:26.8]} 9. Bxf5 {[%clk 0:02:31.8]} 9... Nxf5 {[%clk 0:02:27.7]}
10. Qd3 {[%clk 0:02:26.5]} 10... fxe5 {[%clk 0:02:17.7]} 11. fxe5 {[%clk
0:02:25.7]} 11... e6 {[%clk 0:02:16.3]} 12. Bg5 {[%clk 0:02:23.2]} 12... Qb6
{[%clk 0:02:12]} 13. O-O-O {[%clk 0:02:18.7]} 13... Nd7 {[%clk 0:02:05.5]} 14.
g4 {[%clk 0:02:10.8]} 14... Nh6 {[%clk 0:02:05.4]} 15. Rhg1 {[%clk 0:02:01.4]}
15... c5 {[%clk 0:02:03.6]} 16. Qe3 {[%clk 0:01:18.5]} 16... cxd4 {[%clk
0:01:30.8]} 17. Nxd4 {[%clk 0:01:13.3]} 17... Nf7 {[%clk 0:01:05.7]} 18. h4
{[%clk 0:00:59.3]} 18... Ndxe5 {[%clk 0:00:58.8]} 19. b3 {[%clk 0:00:51.6]}
19... Rae8 {[%clk 0:00:53.3]} 20. h5 {[%clk 0:00:51.4]} 20... Nxg5 {[%clk
0:00:50.2]} 21. Qxg5 {[%clk 0:00:49.1]} 21... Nf7 {[%clk 0:00:44.1]} 22. Qd2
{[%clk 0:00:41.1]} 22... Qxd4 {[%clk 0:00:32.9]} 23. Qxd4 {[%clk 0:00:40.9]}
23... Bxd4 {[%clk 0:00:33.8]} 24. Rxd4 {[%clk 0:00:41.6]} 24... Ng5 {[%clk
0:00:32.7]} 25. Rdd1 {[%clk 0:00:30.3]} 25... Rf4 {[%clk 0:00:28.8]} 26. hxg6
{[%clk 0:00:29.9]} 26... hxg6 {[%clk 0:00:29.7]} 27. Ne2 {[%clk 0:00:28.8]}
27... Rf2 {[%clk 0:00:27.7]} 28. Nd4 {[%clk 0:00:27.9]} 28... e5 {[%clk
0:00:26.4]} 29. Nb5 {[%clk 0:00:27.4]} 29... d4 {[%clk 0:00:23.1]} 30. Rge1
{[%clk 0:00:21]} 30... Nf3 {[%clk 0:00:20.9]} 31. Re4 {[%clk 0:00:18.9]} 31...
Rc8 {[%clk 0:00:21.4]} 32. Na3 {[%clk 0:00:14]} 32... Rc5 {[%clk 0:00:20.4]} 33.
Kb1 {[%clk 0:00:13.4]} 33... Nd2+ {[%clk 0:00:19.7]} 34. Rxd2 {[%clk 0:00:12.6]}
34... Rxd2 {[%clk 0:00:20.6]} 35. Nc4 {[%clk 0:00:13]} 35... Rg2 {[%clk
0:00:15.6]} 36. a4 {[%clk 0:00:05.1]} 36... Kg7 {[%clk 0:00:12.9]} 37. a5 {[%clk
0:00:05.3]} 37... Kf6 {[%clk 0:00:12]} 38. Kb2 {[%clk 0:00:03.2]} 38... Rf2
{[%clk 0:00:10.3]} 39. Ka3 {[%clk 0:00:03.2]} 39... Rf4 {[%clk 0:00:09.3]} 40.
Re2 {[%clk 0:00:03.4]} 40... e4 {[%clk 0:00:08.8]} 41. Kb4 {[%clk 0:00:03.4]}
41... Rd5 {[%clk 0:00:09.1]} 42. Nd2 {[%clk 0:00:02.1]} 42... d3 {[%clk
0:00:08.7]} 43. Nxe4+ {[%clk 0:00:02.3]} 43... Rxe4+ {[%clk 0:00:06.7]} 44. Rxe4
{[%clk 0:00:01.5]} 44... d2 {[%clk 0:00:07.6]} 45. c4 {[%clk 0:00:01.3]} 45...
Rd7 {[%clk 0:00:05]} 46. Rf4+ {[%clk 0:00:01.6]} 46... Ke5 {[%clk 0:00:05.3]}
47. Rf1 {[%clk 0:00:01.9]} 47... d1=Q {[%clk 0:00:05.9]} 48. Rxd1 {[%clk
0:00:02.6]} 48... Rxd1 {[%clk 0:00:06.6]} 49. Kb5 {[%clk 0:00:03.2]} 49... Rd7
{[%clk 0:00:07.1]} 50. b4 {[%clk 0:00:03.4]} 50... Kd4 {[%clk 0:00:07.4]} 51. g5
{[%clk 0:00:04]} 51... a6+ {[%clk 0:00:04.9]} 52. Kb6 {[%clk 0:00:03.9]} 52...
Kxc4 {[%clk 0:00:05.5]} 53. b5 {[%clk 0:00:03.3]} 53... axb5 {[%clk 0:00:06.4]}
54. Ka7 {[%clk 0:00:03.2]} 54... b4 {[%clk 0:00:06.6]} 0-1